Cogmind - Beta 15 @@@ ROGUE MODE // 2025.05.25 @ 15:51:34 Player: alice_fexa Result: Destroyed by as-09354 with Assembled Maul Performance ------------- Evolutions (0) 0 Regions Visited (2) 400 Robots Destroyed (31) 155 Value Destroyed (541) 541 Prototype IDs (0) 0 Alien Tech Used (0) 0 Bonus (0) 0 TOTAL SCORE: 1096 Bonus ------- None Cogmind --------- Core Integrity 0/250 Matter 200/300 Energy 100/100 System Corruption 0% Temperature Cool (0) Movement Core (400) Ox7 Location -10/Mines Parts ------- > --- POWER (1) -------- (None) > --- PROPULSION (2) --- (None) > --- UTILITY (2) ------ Improved Heat Sink Large Storage Unit > --- WEAPON (2) ------- Beam Cannon > --- INVENTORY (15) --- Ion Engine Ion Engine Heat Sink Heat Sink EM Pulse Gun Beam Cannon Beam Cannon Beam Cannon Light Assault Rifle Light Assault Rifle Light Assault Rifle Light Assault Rifle Grenade Launcher Peak State ------------ > --- POWER ------------ Ion Engine > --- PROPULSION ------- Light Treads Light Treads > --- UTILITY ---------- Improved Heat Sink Large Storage Unit > --- WEAPON ----------- EM Pulse Gun EM Pulse Gun > --- INVENTORY -------- Ion Engine Ion Engine Ion Engine Light Treads Heat Sink Heat Sink Beam Cannon Beam Cannon Beam Cannon Beam Cannon Light Assault Rifle Light Assault Rifle Grenade Launcher Grenade Launcher [Rating: 10] Favorites ----------- Power Ion Engine Engine Ion Engine Propulsion Light Treads Treads Light Treads Wheel Compact Wheel Utility Light Armor Plating Device Improved Heat Sink Storage Small Storage Unit Protection Light Armor Plating Weapon EM Pulse Gun Energy Gun EM Pulse Gun Energy Cannon Beam Cannon Ballistic Gun Light Assault Rifle Launcher Grenade Launcher Build | -11 -10 -10 ------- Run | Yrd Mat Min Slots Evolved . | . . . Power . | . . . Propulsion . | . . . Utility . | . . . Weapon . | . . . Parts Attached 18 | 6 9 3 Power 4 | 1 3 . Engine 4 | 1 3 . Core . | . . . Reactor . | . . . Propulsion 4 | 2 1 1 Treads 3 | 1 1 1 Leg . | . . . Wheel 1 | 1 . . Hover . | . . . Flight . | . . . Utility 4 | 1 2 1 Device 1 | . . 1 Storage 2 | 1 1 . Processor . | . . . Hackware . | . . . Protection 1 | . 1 . Artifact . | . . . Weapon 6 | 2 3 1 Energy Gun 3 | 1 2 . Energy Cannon 1 | . . 1 Ballistic Gun 1 | 1 . . Ballistic Cannon . | . . . Launcher 1 | . 1 . Special Weapon . | . . . Impact Weapon . | . . . Slashing Weapon . | . . . Piercing Weapon . | . . . Special Melee Weapon . | . . . Unidentified Prototypes . | . . . Parts Lost 6 | . . 6 Power 1 | . . 1 Propulsion 3 | . . 3 Utility . | . . . Weapon 2 | . . 2 Highest Loss Streak 4 | . . 4 To Critical Strikes . | . . . Average Backups 10 | 1 8 14 Power 1 | . 1 2 Propulsion 1 | 1 1 . Utility 1 | . 1 2 Weapon 5 | . 4 8 Tool/Special . | . . . Unused Backups 21 | . 5 16 Power 5 | . 1 4 Propulsion 1 | . 1 . Utility 3 | . 1 2 Weapon 12 | . 2 10 Tool/Special . | . . . Average Slot Usage (%) 97 | . 97 99 Engine 14 | . 14 14 Treads 21 | . 19 27 Wheel 6 | . 8 . Device 2 | . . 9 Storage 14 | . 14 14 Protection 9 | . 11 3 Energy Gun 26 | . 27 24 Peak Build Rating 10 | 6 8 10 Average Rating 8 | 4 7 9 On Entrance 4 | . 6 8 Naked Turns . | . . . Heaviest Build 32 | 13 32 32 Greatest Support 40 | 20 40 40 Greatest Overweight (x) 1 | . 1 . Average Overweight (x) . | . . . Largest Inventory Capacity 15 | 8 15 15 Average Capacity 11 | 6 9 15 Most Carried 15 | 4 15 15 Average Carried 10 | 2 9 14 Final Capacity 15 | 8 15 15 Final Carried 15 | 4 15 13 Class Distribution -------------------- 100% | Mutant Dominant Class ---------------- Mutant | -10/Materials Mutant | -10/Mines Resources | -11 -10 -10 ----------- Run | Yrd Mat Min Matter Collected 540 | 138 322 80 Remotely . | . . . Salvage Created 758 | . 515 243 Parts 57 | . 35 22 Haulers Intercepted 2 | . 2 . Recyclers Shooed 1 | . . 1 Parts Field Recycled . | . . . Retrieved Matter . | . . . Parts Self-Destructed . | . . . Prevented . | . . . Kills | -11 -10 -10 ------- Run | Yrd Mat Min Combat Hostiles Destroyed 30 | . 12 18 Guns 8 | . 4 4 Cannons 1 | . . 1 AOE 20 | . 7 13 Classes Destroyed 7 | . 6 1 Worker 2 | . 1 1 Hauler 2 | . 2 . Operator 1 | . 1 . Watcher 3 | . 3 . Swarmer 15 | . 6 9 Grunt 8 | . 6 2 Assembled 7 | . . 7 Best Kill Streak 7 | . 5 7 Combat Bots Only 7 | . 3 7 Max Kills in Single Turn 3 | . 3 3 Gunslinging . | . . . Exploded 3 | . 3 3 Melee . | . . . Uniques/NPCs Destroyed . | . . . Combat | -11 -10 -10 -------- Run | Yrd Mat Min Hostile Shots Fired 102 | . 33 69 Missed 28 | . 10 18 Hits 74 | . 23 51 Melee 2 | . . 2 Projectile 72 | . 23 49 AOE 9 | . . 9 Critical Strikes 2 | . 2 . Part Disruptions 1 | . . 1 Damage Taken 1216 | . 271 945 Core 253 | . 72 181 Absorbed by Shields . | . . . Core Remaining (%) 100 | 100 . . Volleys Fired 66 | . 39 27 Largest 2 | . 2 2 Hottest 100 | . 80 100 Shots Fired 117 | . 73 44 Gun 97 | . 68 29 Cannon 4 | . . 4 Launcher 16 | . 5 11 Special . | . . . Kinetic . | . . . Thermal 4 | . . 4 Explosive 16 | . 5 11 Electromagnetic 97 | . 68 29 Robot Hit Streak 6 | . 6 5 Robot Miss Streak 5 | . 5 3 Penetration Max . | . . . Secondary Targets . | . . . Shots Hit Robots 57 | . 36 21 Core Hits 63 | . 29 34 Critical Kills . | . . . Critical Parts Destroyed . | . . . Critical Strikes 2 | . 2 . Corrupt 2 | . 2 . Melee Attacks . | . . . Impact . | . . . Slashing . | . . . Piercing . | . . . Sneak Attacks . | . . . Combat Hostiles . | . . . Follow-up Attacks . | . . . Damage Inflicted 2067 | . 990 1077 Guns 726 | . 531 195 Cannons 54 | . . 54 Explosions 1287 | . 459 828 Melee . | . . . Ramming . | . . . Kinetic . | . . . Thermal 182 | . 67 115 Explosive 1159 | . 392 767 Electromagnetic 726 | . 531 195 Impact . | . . . Slashing . | . . . Piercing . | . . . Highest Corruption . | . . . Average Corruption . | . . . Corruption Purged . | . . . Corruption Blocked . | . . . Overload Shots . | . . . Overflow Damage 46 | . 15 31 Projectiles . | . . . Explosions 46 | . 15 31 Melee . | . . . Knockbacks . | . . . Impact . | . . . Kinetic . | . . . Secondary . | . . . Self-Inflicted Damage 157 | . 14 143 Shots 7 | . 2 5 Rammed . | . . . Targets Rammed . | . . . Kicked . | . . . Crushed . | . . . Highest Temperature 262 | . 262 231 Average Temperature 71 | . 63 95 Received Heat Transfer 234 | . 132 102 Siege Activations . | . . . Martial Activations . | . . . Shielding Activations . | . . . Robots Disrupted . | . . . Combat Hostiles . | . . . Robots Corrupted 1 | . 1 . Combat Hostiles 1 | . 1 . Parts Fried 4 | . 3 1 Impact Corruptions . | . . . Robots Melted . | . . . Combat Hostiles . | . . . Parts Melted . | . . . Heat Transferred 311 | . 50 261 Parts Sabotaged . | . . . Parts Stolen . | . . . Parts Stripped . | . . . Power Chain Reactions 3 | . 2 1 Alert | -11 -10 -10 ------- Run | Yrd Mat Min Maximum Alert Level 1 | . . 1 Low Security (%) 88 | 100 100 61 Level 1 11 | . . 38 Level 2 . | . . . Level 3 . | . . . Level 4 . | . . . Level 5 . | . . . High Security . | . . . Max Security . | . . . Peak Influence 241 | . 133 241 Initial 30 | . . 30 Average 83 | . 48 174 Influence Increases 732 | . 383 349 Destroy 0b10 Robot/C 460 | . 240 220 Destroy 0b10 Robot/NC 40 | . 35 5 Destroy Leader 110 | . 70 40 Successful Hack 3 | . 3 . Disable Machine 15 | . 15 . Destroy Structure 59 | . 20 39 Lose Combat Pursuer 45 | . . 45 Influence Decreases 675 | . 306 369 Entered New Map 47 | . . 47 Time Decay 528 | . 306 222 Lost Part 60 | . . 60 Lost Ally 40 | . . 40 Squads Dispatched 2 | . 2 . Investigation 1 | . 1 . Extermination . | . . . Reinforcement 1 | . 1 . Assault . | . . . Garrison . | . . . Intercept . | . . . Searches Triggered . | . . . Construction Impeded . | . . . Haulers Reinforced . | . . . Active Scanning Responses . | . . . Cargo Convoy Interrupts . | . . . Stealth | -11 -10 -10 --------- Run | Yrd Mat Min Distress Signals 1 | . 1 . Communications Jammed . | . . . Distress Signals . | . . . Times Spotted 49 | . 19 30 Peak Tracking Total 8 | . 3 8 Tactical Retreats 3 | . . 3 Traps | -11 -10 -10 ------- Run | Yrd Mat Min Traps Triggered 1 | . 1 . Indirectly . | . . . Trap Hack Attempts . | . . . Triggered . | . . . Disarmed . | . . . Reprogrammed . | . . . Reused . | . . . Traps Extracted . | . . . Installed . | . . . Triggered . | . . . Machines | -11 -10 -10 ---------- Run | Yrd Mat Min Machines Disabled 1 | . 1 . Max in Single Turn 1 | . 1 . Machines Repaired . | . . . Machines Dismantled . | . . . Machines Sabotaged . | . . . Overloaded Fab Kills . | . . . Hacking | -11 -10 -10 --------- Run | Yrd Mat Min Machines Accessed 8 | . 8 . Terminals 7 | . 7 . Fabricators . | . . . Repair Stations . | . . . Recycling Units 1 | . 1 . Scanalyzers . | . . . Garrison Access . | . . . Total Hacks 21 | . 21 . Successful 7 | . 7 . Failed 14 | . 14 . Catastrophic 1 | . 1 . Database Lockouts . | . . . Manual 20 | . 20 . Terminals 20 | . 20 . Fabricators . | . . . Repair Stations . | . . . Recycling Units 1 | . 1 . Scanalyzers . | . . . Garrison Access . | . . . Terminal Hacks . | . . . Fabricator Hacks . | . . . Repair Station Hacks . | . . . Recycling Unit Hacks 1 | . 1 . Retrieve Components 1 | . 1 . Scanalyzer . | . . . Garrison Access Hacks . | . . . Unauthorized Hacks 6 | . 6 . Terminals 6 | . 6 . Botnet 2 | . 2 . Skim 4 | . 4 . Fabricators . | . . . Repair Stations . | . . . Recycling Units . | . . . Scanalyzers . | . . . Garrison Access . | . . . Data Cores Recovered . | . . . Used . | . . . Hacking Detections 8 | . 8 . Full Trace Events . | . . . Feedback Events . | . . . Feedback Blocked . | . . . Robot Schematics Acquired . | . . . Robots Built . | . . . Authchips . | . . . Time . | . . . Total Robot Build Rating . | . . . Part Schematics Acquired . | . . . Parts Built . | . . . Authchips . | . . . Time . | . . . Total Part Build Rating . | . . . Parts Repaired . | . . . Time . | . . . Parts Recycled . | . . . Recycled Matter . | . . . Retrieved Matter . | . . . Retrieved Components 6 | . 6 . Parts Scanalyzed . | . . . Part Schematics Acquired . | . . . Parts Damaged . | . . . Bothacking | -11 -10 -10 ------------ Run | Yrd Mat Min Used RIF Installer . | . . . Robots Hacked . | . . . Non-combat . | . . . Combat . | . . . Robot Hacks Applied . | . . . Relay Couplers Released . | . . . Fabnet Peak Effective % . | . . . Robots Rewired . | . . . Allies Hacked . | . . . Hacks Repelled . | . . . Allies | -11 -10 -10 -------- Run | Yrd Mat Min Total Allies 2 | . . 2 Largest Group 2 | . . 2 Highest-Rated Group 46 | . . 46 Highest-Rated Ally 31 | . . 31 Total Orders . | . . . Ally Attacks 6 | . . 6 Total Damage 63 | . . 63 Kills . | . . . Allies Corrupted . | . . . Allies Melted . | . . . Intel | -11 -10 -10 ------- Run | Yrd Mat Min Active Infowar (turns) . | . . . Robot Analysis Total . | . . . Derelict Logs Recovered 1 | . . 1 Drone Launches . | . . . Drone Recoveries . | . . . Exploration | -11 -10 -10 ------------- Run | Yrd Mat Min Turns Passed 1614 | 52 1096 466 Spaces Moved 975 | 36 713 226 Core 4 | 4 . . Treads 471 | 7 238 226 Legs . | . . . Wheels 500 | 25 475 . Hover . | . . . Flight . | . . . Fastest Speed 50 | 50 100 160 Average Speed 133 | 106 127 160 Slowest Speed 160 | 160 160 160 Overloaded Moves . | . . . Propulsion Burnouts . | . . . Robots Hopped . | . . . Potential Cave-ins . | . . . Cave-ins Triggered . | . . . Exploration Rate (%) 52 | 3 96 57 Regions Visited 2 Branch Regions 1 Pre-discovered Areas . | . . . Known Exits Taken . | . . . Unknown Exits Taken 2 | 1 1 . Scrap Searched 1 | . . 1 Spaces Dug 7 | . 2 5 Terrain Destroyed 81 | . 17 64 Melee . | . . . Projectile . | . . . AOE 81 | . 17 64 Terrain Rammed . | . . . Walls Destroyed . | . . . Machines Disabled . | . . . Actions | -11 -10 -10 --------- Run | Yrd Mat Min Total 1172 | 46 833 293 Wait 54 | 1 37 16 Move 973 | 35 712 226 Hop . | . . . Pick Up 29 | 4 18 7 Fast Attach 7 | 6 1 . Attach 5 | . 2 3 Detach . | . . . Swap 19 | . 12 7 Drop 19 | . 12 7 Fire 66 | . 39 27 Melee . | . . . Ram . | . . . Kick . | . . . Crush . | . . . Escape Stasis . | . . . Rewire . | . . . Trap . | . . . Miscellaneous . | . . . Route ------- -11/Scrapyard -10/Materials (discovered 4 exits: [*Mat x3] / [*Min]) -10/Mines (discovered 2 exits: [*Mat x2]) History --------- Turn | Location | Event 8 | -11/Scrapyard | Discovered new exit (range 15) 53 | -11/Scrapyard | Entered Materials 301 | -10/Materials | Build established: Mutant 313 | -10/Materials | Discovered new exit (range 7) 404 | -10/Materials | Discovered new exit (range 15) 689 | -10/Materials | Discovered new exit (range 11) 939 | -10/Materials | Discovered new exit (range 7) 1149 | -10/Materials | Entered Mines 1149 | -10/Mines | Discovered new exit (range 16) 1268 | -10/Mines | Core integrity fell below 50% 1297 | -10/Mines | Learned Materials interactive machine intel 1302 | -10/Mines | Discovered new exit (range 6) 1506 | -10/Mines | Assembled infested the area 1609 | -10/Mines | Core integrity fell below 20% 1615 | -10/Mines | Destroyed by as-09354 with Assembled Maul Last Messages --------------- 01578_ The unstable cave ceiling collapses. 01594_ as-48022 destroyed. 01594_ as-29742 destroyed. 01595_ The unstable cave ceiling collapses. 01605_ as-08663 destroyed. 01605_ as-11384 destroyed. 01608_ The unstable cave ceiling collapses. 01608_ Carbon-fiber Leg crushed. 01608_ The unstable cave ceiling collapses. 01608_ Lgt. Treads destroyed. 01608_ as-27908 destroyed. 01611_ Lgt. Treads destroyed. 01612_ Destroyed Asb. F-torch. 01612_ Destroyed Asb. Hover Unit. 01612_ as-35607 destroyed. 01614_ as-73956 destroyed. 01614_ Ion Engine destroyed. 01614_ Destroyed Ion Engine. 01615_ The unstable cave ceiling collapses. 01615_ Grenade Launcher destroyed. Map ----- +----------------------------------------------------+ | | | | | | | | | | | | | | | | | | | ?????????????????????????????????????????????????? | | ???????####??????????????????????????????????????? | | ??????## ##?????????????????????????????????????? | | ??##### #?????????????????????????????????????? | | ?## ??????????????????????????????????????? | | ?# #??????????????????????????????????????? | | ?# #??????????????????????????????????????? | | ?# ##????######????????????????????????????? | | ?## ##???## ##???????????????????????????? | | ??## ##?## #?####??????????????????????? | | ???## ### ### ####???????????????????? | | ##??# # ##??????????????????? | | ## #??????????????????? | | ?# ##??????????????????? | | ?# #??????????????????? | | ?##### # # #??????????????????? | | ?????# ## #### # @ #??????????????????? | | ?????# ## ###??#### # a #??????????????????? | | ?????# ## #???????## ???????????????? | | ###### #???????## # a #????????????? | | ####??????#### aa #????????????? | | #########?????????# a ##????????????? | | #?????????????????# % #?????????????? | | #?????????????????# #### [ #?????????????? | | ?????????????? ???## #?????????????? | | ??????????# #####?????# #?????????????? | | ?????????#?????????????### ####?????????????? | | # ???????????????????????? ????????????????? | | ?# ???????????????????????? ???????????????? | | ??#### ??????????????????????? ????????????????? | | ??????? #????????????????????????????????????????? | | ????????#????????????????????????????????????????? | | ?????????????????????????????????????????????????? | | ?????????????????????????????????????????????????? | | ?????????????????????????????????????????????????? | | ?????????????????????????????????????????????????? | | ?????????????????????????????????????????????????? | | ?????????????????????????????????????????????????? | | ?????????????????????????????????????????????????? | | ?????????????????????????????????????????????????? | | ?????????????????????????????????????????????????? | +----------------------------------------------------+ Best States ------------- Heat Dissipation 39 Energy Generation 10 Energy Capacity 250 Matter Stores 300 Matter Capacity 300 Sight Range 16 Terrain Scan Density 10 Armor Coverage 150 Evasion (%) 40 Recoil Reduction 2 Item Schematics ----------------- None Robot Schematics ------------------ None Fabricated ------------ Nothing Repaired ---------- Nothing Alien Tech Used ----------------- None Achievements -------------- None Challenges ------------ None Game ------ Seed BraceThermalGun Manual? 0 Play Time 00:12:27 Cumulative 1507.9 hours Start 2025.05.25 @ 15:41:27 End 2025.05.25 @ 15:51:34 Sessions 1 Manual Loads 0 Difficulty Rogue Special Mode None Game No. 1076 Rogue 1036 Adventurer 40 Explorer 0 Win Type - Total 193 Types 82/9/74/2/1/4/16/2/1/2 Lore% 96 Gallery% 96 Achievement% 87 Wizard Run 0 Options --------- Layout 0 ASCII 0 Keyboard 0 Movement Numpad Keybinds 0 Fullscreen 0 Font 20/Terminus Map View 76x50 Zoom Use 0% Tactical HUD 1 Map Filters NONE Filters NONE Steam 1 RUN: 31852c6f-555d-40b0-9753-1b939f46053d